[Event "*** SCC Grand Prix: Titled Tuesday Blitz"]
[Site "Chess.com"]
[Date "2020.08.25"]
[Round "7"]
[White "shnitez"]
[Black "mirceaparligras"]
[Result "0-1"]
[WhiteElo "2465"]
[BlackElo "2677"]
[TimeControl "180+1"]
[EndTime "11:20:12 PDT"]
[Termination "mirceaparligras won on time"]

1. d4 {[%clk 0:03:00.9]} 1... e6 {[%clk 0:03:00.9]} 2. c4 {[%clk 0:02:59.2]}
2... d5 {[%clk 0:03:01.4]} 3. Nc3 {[%clk 0:02:54.4]} 3... Bb4 {[%clk 0:02:58.6]}
4. e3 {[%clk 0:02:46.7]} 4... Nf6 {[%clk 0:02:57]} 5. a3 {[%clk 0:02:40.3]} 5...
Bxc3+ {[%clk 0:02:56]} 6. bxc3 {[%clk 0:02:41.2]} 6... c6 {[%clk 0:02:56.5]} 7.
cxd5 {[%clk 0:02:39.4]} 7... cxd5 {[%clk 0:02:56.4]} 8. c4 {[%clk 0:02:34.4]}
8... O-O {[%clk 0:02:49.2]} 9. Nf3 {[%clk 0:02:30.1]} 9... Ne4 {[%clk 0:02:47]}
10. Bd3 {[%clk 0:02:21.7]} 10... b6 {[%clk 0:02:39.9]} 11. O-O {[%clk
0:02:19.9]} 11... Ba6 {[%clk 0:02:38.2]} 12. cxd5 {[%clk 0:01:49]} 12... Bxd3
{[%clk 0:02:36.4]} 13. Qxd3 {[%clk 0:01:49.9]} 13... Qxd5 {[%clk 0:02:29.4]} 14.
Ne5 {[%clk 0:01:46.7]} 14... Nc6 {[%clk 0:02:21.6]} 15. Nxc6 {[%clk 0:01:43.9]}
15... Qxc6 {[%clk 0:02:22.5]} 16. f3 {[%clk 0:01:41.5]} 16... Nd6 {[%clk
0:02:18.8]} 17. e4 {[%clk 0:01:40.3]} 17... Rfd8 {[%clk 0:02:08.5]} 18. Be3
{[%clk 0:01:37.9]} 18... Qc4 {[%clk 0:02:01.9]} 19. Qxc4 {[%clk 0:01:22.2]}
19... Nxc4 {[%clk 0:02:01.6]} 20. Kf2 {[%clk 0:01:17.3]} 20... b5 {[%clk
0:01:59.4]} 21. Rfc1 {[%clk 0:01:13.9]} 21... Rdc8 {[%clk 0:01:56.6]} 22. Ke2
{[%clk 0:01:08.9]} 22... Kf8 {[%clk 0:01:55.7]} 23. Bf2 {[%clk 0:01:00]} 23...
Ke7 {[%clk 0:01:53.8]} 24. Kd3 {[%clk 0:00:57.1]} 24... a6 {[%clk 0:01:48.5]}
25. Rc2 {[%clk 0:00:38.4]} 25... Kd7 {[%clk 0:01:38.5]} 26. Be1 {[%clk
0:00:36.4]} 26... Nb6 {[%clk 0:01:29.8]} 27. Rac1 {[%clk 0:00:33.7]} 27... Rxc2
{[%clk 0:01:25.8]} 28. Rxc2 {[%clk 0:00:34.6]} 28... Nc4 {[%clk 0:01:24]} 29.
Bb4 {[%clk 0:00:34.6]} 29... a5 {[%clk 0:01:19.5]} 30. Bc5 {[%clk 0:00:34.5]}
30... a4 {[%clk 0:01:15.7]} 31. Kc3 {[%clk 0:00:32.5]} 31... Kc6 {[%clk
0:01:11.8]} 32. Kb4 {[%clk 0:00:31.9]} 32... Rd8 {[%clk 0:01:10]} 33. Rc1 {[%clk
0:00:26.8]} 33... h5 {[%clk 0:01:02.9]} 34. Rd1 {[%clk 0:00:24.9]} 34... g6
{[%clk 0:00:50.7]} 35. Rd3 {[%clk 0:00:19.1]} 35... f5 {[%clk 0:00:48]} 36. Rd1
{[%clk 0:00:18]} 36... Rd7 {[%clk 0:00:47.5]} 37. Rd3 {[%clk 0:00:17.8]} 37...
g5 {[%clk 0:00:47]} 38. Rd1 {[%clk 0:00:17.2]} 38... g4 {[%clk 0:00:47.1]} 39.
Rd3 {[%clk 0:00:16.2]} 39... f4 {[%clk 0:00:44.8]} 40. Rd1 {[%clk 0:00:12.4]}
40... Ne3 {[%clk 0:00:41.8]} 41. Rd2 {[%clk 0:00:11.5]} 41... h4 {[%clk
0:00:35.1]} 42. fxg4 {[%clk 0:00:10.6]} 42... Nxg4 {[%clk 0:00:35.2]} 43. h3
{[%clk 0:00:10.4]} 43... Ne3 {[%clk 0:00:35]} 44. Rf2 {[%clk 0:00:10.5]} 44...
Rf7 {[%clk 0:00:31.9]} 45. d5+ {[%clk 0:00:09]} 45... exd5 {[%clk 0:00:30.4]}
46. Bxe3 {[%clk 0:00:09.1]} 46... fxe3 {[%clk 0:00:29.8]} 47. Rxf7 {[%clk
0:00:08.4]} 47... e2 {[%clk 0:00:30.1]} 48. exd5+ {[%clk 0:00:06.4]} 48... Kd6
{[%clk 0:00:29.4]} 49. Rf6+ {[%clk 0:00:03.3]} 49... Kxd5 {[%clk 0:00:28.8]} 50.
Rf5+ {[%clk 0:00:03.1]} 50... Kd6 {[%clk 0:00:27.2]} 51. Rf6+ {[%clk 0:00:01.5]}
51... Ke7 {[%clk 0:00:26.5]} 0-1

[Event "*** SCC Grand Prix: Titled Tuesday Blitz"]
[Site "Chess.com"]
[Date "2020.08.25"]
[Round "7"]
[White "mapleaff"]
[Black "chigorin28"]
[Result "1-0"]
[WhiteElo "2349"]
[BlackElo "2439"]
[TimeControl "180+1"]
[EndTime "11:20:13 PDT"]
[Termination "mapleaff won on time"]

1. e4 {[%clk 0:03:00.9]} 1... c5 {[%clk 0:03:00.2]} 2. Nf3 {[%clk 0:03:00.5]}
2... Nc6 {[%clk 0:03:00.6]} 3. Bb5 {[%clk 0:02:57.2]} 3... a6 {[%clk 0:02:57]}
4. Bxc6 {[%clk 0:02:55.6]} 4... bxc6 {[%clk 0:02:53.2]} 5. O-O {[%clk
0:02:56.5]} 5... g6 {[%clk 0:02:51.8]} 6. d3 {[%clk 0:02:53.9]} 6... Bg7 {[%clk
0:02:52]} 7. Nc3 {[%clk 0:02:53.9]} 7... Nf6 {[%clk 0:02:46.6]} 8. Be3 {[%clk
0:02:52.9]} 8... d6 {[%clk 0:02:42.6]} 9. e5 {[%clk 0:02:49.1]} 9... Nd5 {[%clk
0:02:37.1]} 10. Nxd5 {[%clk 0:02:42]} 10... cxd5 {[%clk 0:02:38]} 11. exd6
{[%clk 0:02:40]} 11... Qxd6 {[%clk 0:02:35]} 12. c3 {[%clk 0:02:14.8]} 12... O-O
{[%clk 0:02:32.8]} 13. Qd2 {[%clk 0:02:12.3]} 13... Re8 {[%clk 0:02:29.3]} 14.
Bh6 {[%clk 0:02:07.7]} 14... Bh8 {[%clk 0:02:28.9]} 15. d4 {[%clk 0:02:06.3]}
15... cxd4 {[%clk 0:02:17]} 16. cxd4 {[%clk 0:02:01.9]} 16... Bf5 {[%clk
0:02:06.8]} 17. Bf4 {[%clk 0:01:56.9]} 17... Qb6 {[%clk 0:02:05.5]} 18. Rfe1
{[%clk 0:01:52.4]} 18... Rac8 {[%clk 0:02:04.9]} 19. Rac1 {[%clk 0:01:49.2]}
19... Rxc1 {[%clk 0:01:16]} 20. Rxc1 {[%clk 0:01:43.5]} 20... Rc8 {[%clk
0:01:15.8]} 21. Rxc8+ {[%clk 0:01:36.7]} 21... Bxc8 {[%clk 0:01:16.7]} 22. Qc3
{[%clk 0:01:30.9]} 22... Bd7 {[%clk 0:01:11]} 23. h3 {[%clk 0:01:25.3]} 23...
Bf6 {[%clk 0:01:04.1]} 24. Be5 {[%clk 0:01:22.6]} 24... Kg7 {[%clk 0:00:45.5]}
25. Qa3 {[%clk 0:01:15.8]} 25... Bf5 {[%clk 0:00:38.4]} 26. Qxe7 {[%clk
0:01:10]} 26... Qe6 {[%clk 0:00:30.2]} 27. Qxe6 {[%clk 0:00:45.2]} 27... Bxe6
{[%clk 0:00:30.3]} 28. Kf1 {[%clk 0:00:23.9]} 28... h6 {[%clk 0:00:29.9]} 29.
Ke2 {[%clk 0:00:23]} 29... g5 {[%clk 0:00:30.3]} 30. b4 {[%clk 0:00:19.5]} 30...
Kg6 {[%clk 0:00:30.3]} 31. Bxf6 {[%clk 0:00:19.9]} 31... Kxf6 {[%clk 0:00:31.2]}
32. a4 {[%clk 0:00:20.1]} 32... Bd7 {[%clk 0:00:31]} 33. a5 {[%clk 0:00:20.3]}
33... Bb5+ {[%clk 0:00:30.7]} 34. Ke3 {[%clk 0:00:20.7]} 34... h5 {[%clk
0:00:29.8]} 35. Ne1 {[%clk 0:00:20.7]} 35... Ke6 {[%clk 0:00:23.4]} 36. g3
{[%clk 0:00:20.5]} 36... Bf1 {[%clk 0:00:22]} 37. h4 {[%clk 0:00:20.4]} 37...
gxh4 {[%clk 0:00:21.6]} 38. gxh4 {[%clk 0:00:21.3]} 38... Kf5 {[%clk 0:00:22.4]}
39. Kf3 {[%clk 0:00:20.9]} 39... f6 {[%clk 0:00:05.2]} 40. Nc2 {[%clk
0:00:19.3]} 40... Bd3 {[%clk 0:00:02.6]} 41. Ne3+ {[%clk 0:00:19.6]} 41... Ke6
{[%clk 0:00:02.9]} 42. Kf4 {[%clk 0:00:14.5]} 42... Kd6 {[%clk 0:00:02.6]} 43.
Nf5+ {[%clk 0:00:13.2]} 43... Kc6 {[%clk 0:00:02.8]} 44. Ne7+ {[%clk 0:00:12.4]}
1-0

[Event "*** SCC Grand Prix: Titled Tuesday Blitz"]
[Site "Chess.com"]
[Date "2020.08.25"]
[Round "7"]
[White "Revnov"]
[Black "Kobalia"]
[Result "1-0"]
[WhiteElo "2714"]
[BlackElo "2764"]
[TimeControl "180+1"]
[EndTime "11:20:14 PDT"]
[Termination "Revnov won on time"]

1. b3 {[%clk 0:03:00.8]} 1... e5 {[%clk 0:02:58.8]} 2. Bb2 {[%clk 0:03:01]} 2...
Nc6 {[%clk 0:02:59.1]} 3. e3 {[%clk 0:03:01.4]} 3... g6 {[%clk 0:02:59.1]} 4.
Nf3 {[%clk 0:02:57.3]} 4... Bg7 {[%clk 0:02:58.7]} 5. d4 {[%clk 0:02:57.7]} 5...
exd4 {[%clk 0:02:58.6]} 6. Nxd4 {[%clk 0:02:57.4]} 6... Nxd4 {[%clk 0:02:58.7]}
7. Bxd4 {[%clk 0:02:57.5]} 7... Nf6 {[%clk 0:02:58.9]} 8. c4 {[%clk 0:02:53.4]}
8... O-O {[%clk 0:02:58.8]} 9. Be2 {[%clk 0:02:50.5]} 9... d5 {[%clk 0:02:58.8]}
10. O-O {[%clk 0:02:47.8]} 10... dxc4 {[%clk 0:02:43.8]} 11. bxc4 {[%clk
0:02:44.2]} 11... Ne4 {[%clk 0:02:34.6]} 12. Bf3 {[%clk 0:02:39.3]} 12... Ng5
{[%clk 0:02:31.1]} 13. Be2 {[%clk 0:02:22.5]} 13... Bxd4 {[%clk 0:02:06.7]} 14.
exd4 {[%clk 0:02:22]} 14... Ne6 {[%clk 0:02:06.6]} 15. d5 {[%clk 0:02:18.8]}
15... Nf4 {[%clk 0:02:06.5]} 16. Bf3 {[%clk 0:02:18.1]} 16... Qf6 {[%clk
0:02:02.6]} 17. Nd2 {[%clk 0:02:09.5]} 17... Bf5 {[%clk 0:02:01.6]} 18. Nb3
{[%clk 0:02:02.9]} 18... Rfe8 {[%clk 0:01:57.1]} 19. Qd4 {[%clk 0:01:39]} 19...
Qg5 {[%clk 0:01:37.3]} 20. g3 {[%clk 0:01:03.5]} 20... Be4 {[%clk 0:01:22.8]}
21. h4 {[%clk 0:00:50.9]} 21... Qf5 {[%clk 0:01:10.9]} 22. Nd2 {[%clk
0:00:42.1]} 22... Bxf3 {[%clk 0:00:47.6]} 23. Qxf4 {[%clk 0:00:41.6]} 23... Qxf4
{[%clk 0:00:45.9]} 24. gxf4 {[%clk 0:00:42.5]} 24... Bg4 {[%clk 0:00:36]} 25.
Rfe1 {[%clk 0:00:42.8]} 25... Kg7 {[%clk 0:00:32.2]} 26. f3 {[%clk 0:00:38.3]}
26... Bd7 {[%clk 0:00:30.7]} 27. Kf2 {[%clk 0:00:38.2]} 27... c6 {[%clk
0:00:27.6]} 28. Ne4 {[%clk 0:00:36.9]} 28... cxd5 {[%clk 0:00:23.5]} 29. cxd5
{[%clk 0:00:37.8]} 29... Red8 {[%clk 0:00:22]} 30. Rad1 {[%clk 0:00:33.6]} 30...
Rac8 {[%clk 0:00:21]} 31. Rd2 {[%clk 0:00:28.5]} 31... Bf5 {[%clk 0:00:20.5]}
32. Ng3 {[%clk 0:00:23.7]} 32... Bh3 {[%clk 0:00:20]} 33. f5 {[%clk 0:00:20.5]}
33... Rc4 {[%clk 0:00:18.2]} 34. Re7 {[%clk 0:00:19.1]} 34... Rb4 {[%clk
0:00:14.3]} 35. a3 {[%clk 0:00:18.1]} 35... Rb3 {[%clk 0:00:13.5]} 36. d6 {[%clk
0:00:14.3]} 36... Bxf5 {[%clk 0:00:12.1]} 37. Nxf5+ {[%clk 0:00:11.5]} 37...
gxf5 {[%clk 0:00:13]} 38. Kg3 {[%clk 0:00:11.1]} 38... Rxa3 {[%clk 0:00:12.1]}
39. Rxb7 {[%clk 0:00:10.9]} 39... Ra6 {[%clk 0:00:10.4]} 40. d7 {[%clk
0:00:10.2]} 40... Ra4 {[%clk 0:00:08.5]} 41. Rc7 {[%clk 0:00:07.6]} 41... Kf6
{[%clk 0:00:05.2]} 42. Re2 {[%clk 0:00:04.8]} 1-0

[Event "*** SCC Grand Prix: Titled Tuesday Blitz"]
[Site "Chess.com"]
[Date "2020.08.25"]
[Round "7"]
[White "Sychev_Klementy"]
[Black "olksuna"]
[Result "1-0"]
[WhiteElo "2772"]
[BlackElo "2636"]
[TimeControl "180+1"]
[EndTime "11:20:14 PDT"]
[Termination "Sychev_Klementy won by resignation"]

1. e4 {[%clk 0:03:00.9]} 1... d6 {[%clk 0:03:00]} 2. d4 {[%clk 0:02:59.6]} 2...
Nf6 {[%clk 0:03:00.6]} 3. Nc3 {[%clk 0:02:59.6]} 3... c6 {[%clk 0:03:00.7]} 4.
Nf3 {[%clk 0:02:57.9]} 4... Bg4 {[%clk 0:03:00.3]} 5. h3 {[%clk 0:02:58]} 5...
Bh5 {[%clk 0:02:59.8]} 6. Qe2 {[%clk 0:02:56.7]} 6... e6 {[%clk 0:02:55.4]} 7.
g4 {[%clk 0:02:56.4]} 7... Bg6 {[%clk 0:02:55.5]} 8. h4 {[%clk 0:02:54.2]} 8...
h5 {[%clk 0:02:55.7]} 9. g5 {[%clk 0:02:53.4]} 9... Nfd7 {[%clk 0:02:56.3]} 10.
d5 {[%clk 0:02:08.3]} 10... cxd5 {[%clk 0:02:49.3]} 11. exd5 {[%clk 0:02:09.2]}
11... e5 {[%clk 0:02:50.2]} 12. Be3 {[%clk 0:02:08.1]} 12... Be7 {[%clk
0:02:40.1]} 13. O-O-O {[%clk 0:01:54.7]} 13... O-O {[%clk 0:02:37.5]} 14. Qd2
{[%clk 0:01:53.3]} 14... Na6 {[%clk 0:02:32.9]} 15. Bd3 {[%clk 0:01:52.3]} 15...
Bxd3 {[%clk 0:02:24]} 16. Qxd3 {[%clk 0:01:53.2]} 16... g6 {[%clk 0:02:21.9]}
17. Nd2 {[%clk 0:01:51.2]} 17... Rc8 {[%clk 0:02:12.2]} 18. f4 {[%clk
0:01:39.9]} 18... Qa5 {[%clk 0:02:02.7]} 19. Nb3 {[%clk 0:01:31]} 19... Qb4
{[%clk 0:01:32.5]} 20. f5 {[%clk 0:01:31.1]} 20... e4 {[%clk 0:01:17.4]} 21.
Qxe4 {[%clk 0:01:22.9]} 21... Ne5 {[%clk 0:00:54.7]} 22. Rd4 {[%clk 0:01:06.2]}
22... Qb6 {[%clk 0:00:45]} 23. fxg6 {[%clk 0:00:51.3]} 23... fxg6 {[%clk
0:00:43.6]} 24. Rd2 {[%clk 0:00:37.8]} 24... Qb4 {[%clk 0:00:37.2]} 25. Bd4
{[%clk 0:00:22.8]} 25... Rf5 {[%clk 0:00:36]} 26. a3 {[%clk 0:00:17]} 26... Qc4
{[%clk 0:00:33]} 27. Re1 {[%clk 0:00:17.5]} 27... Bf8 {[%clk 0:00:25.7]} 28. Kb1
{[%clk 0:00:13.6]} 28... b5 {[%clk 0:00:19.8]} 29. Bxe5 {[%clk 0:00:11.8]} 29...
dxe5 {[%clk 0:00:16.9]} 30. Qxc4 {[%clk 0:00:07.8]} 30... bxc4 {[%clk
0:00:17.3]} 31. Na5 {[%clk 0:00:07.4]} 31... Rb8 {[%clk 0:00:13.3]} 32. Nc6
{[%clk 0:00:06.2]} 32... Rb7 {[%clk 0:00:13.5]} 33. Ka2 {[%clk 0:00:05.2]} 33...
Bd6 {[%clk 0:00:11.5]} 34. Ne4 {[%clk 0:00:04.7]} 34... Bf8 {[%clk 0:00:11.1]}
35. d6 {[%clk 0:00:03.9]} 35... Rd7 {[%clk 0:00:02.2]} 36. Nf6+ {[%clk
0:00:03.5]} 36... Rxf6 {[%clk 0:00:02.6]} 37. gxf6 {[%clk 0:00:04.4]} 37... Kf7
{[%clk 0:00:03.5]} 38. Nxe5+ {[%clk 0:00:03.9]} 1-0

[Event "*** SCC Grand Prix: Titled Tuesday Blitz"]
[Site "Chess.com"]
[Date "2020.08.25"]
[Round "7"]
[White "ruslansezdbekov"]
[Black "Fischerev7"]
[Result "1-0"]
[WhiteElo "2546"]
[BlackElo "2350"]
[TimeControl "180+1"]
[EndTime "11:20:14 PDT"]
[Termination "ruslansezdbekov won by resignation"]

1. d4 {[%clk 0:03:00.9]} 1... Nf6 {[%clk 0:02:59.7]} 2. c4 {[%clk 0:03:00.8]}
2... e6 {[%clk 0:02:59.6]} 3. Nc3 {[%clk 0:03:00.5]} 3... Bb4 {[%clk 0:02:59.6]}
4. Qc2 {[%clk 0:03:00]} 4... O-O {[%clk 0:02:56.6]} 5. a3 {[%clk 0:02:59.2]}
5... Bxc3+ {[%clk 0:02:55.1]} 6. Qxc3 {[%clk 0:02:59.4]} 6... d5 {[%clk
0:02:55.1]} 7. Bg5 {[%clk 0:02:54.2]} 7... h6 {[%clk 0:02:54.8]} 8. Bxf6 {[%clk
0:02:49.4]} 8... Qxf6 {[%clk 0:02:55.7]} 9. cxd5 {[%clk 0:02:46.7]} 9... exd5
{[%clk 0:02:56.6]} 10. Nf3 {[%clk 0:02:46.3]} 10... Nc6 {[%clk 0:02:53.8]} 11.
e3 {[%clk 0:02:45.9]} 11... Bg4 {[%clk 0:02:52.1]} 12. Be2 {[%clk 0:02:44.4]}
12... Rfe8 {[%clk 0:02:52.1]} 13. O-O {[%clk 0:02:41.2]} 13... Rad8 {[%clk
0:02:51.3]} 14. b4 {[%clk 0:02:35.2]} 14... Re7 {[%clk 0:02:32.2]} 15. h3 {[%clk
0:02:20.5]} 15... Bxf3 {[%clk 0:02:31.6]} 16. Bxf3 {[%clk 0:02:19.5]} 16... Nb8
{[%clk 0:02:32.1]} 17. Rac1 {[%clk 0:01:58.7]} 17... c6 {[%clk 0:02:31.9]} 18.
a4 {[%clk 0:01:52.1]} 18... a6 {[%clk 0:02:31.6]} 19. b5 {[%clk 0:01:47.2]}
19... axb5 {[%clk 0:02:28.4]} 20. axb5 {[%clk 0:01:45.8]} 20... cxb5 {[%clk
0:02:28.9]} 21. Qc5 {[%clk 0:01:19.9]} 21... Nc6 {[%clk 0:02:22.5]} 22. Qxb5
{[%clk 0:01:17.8]} 22... Qe6 {[%clk 0:02:05]} 23. Rc5 {[%clk 0:01:15.6]} 23...
Red7 {[%clk 0:02:04.4]} 24. Rb1 {[%clk 0:01:14.3]} 24... f5 {[%clk 0:02:01.7]}
25. Qb6 {[%clk 0:01:10.9]} 25... f4 {[%clk 0:01:58.8]} 26. Bg4 {[%clk
0:00:57.3]} 26... Qg6 {[%clk 0:01:48.9]} 27. Bxd7 {[%clk 0:00:54.5]} 27... Rxd7
{[%clk 0:01:47.9]} 28. Qb3 {[%clk 0:00:54.5]} 28... f3 {[%clk 0:01:42.8]} 29. g3
{[%clk 0:00:49.6]} 29... Qf5 {[%clk 0:01:39.3]} 30. Kh2 {[%clk 0:00:42.9]} 30...
Kh8 {[%clk 0:01:35]} 31. Ra1 {[%clk 0:00:39.4]} 31... g6 {[%clk 0:01:26.1]} 32.
Ra8+ {[%clk 0:00:36.6]} 32... Kg7 {[%clk 0:01:25.8]} 33. Qc3 {[%clk 0:00:28.3]}
33... h5 {[%clk 0:01:24]} 34. Ra1 {[%clk 0:00:25.8]} 34... h4 {[%clk 0:01:17.3]}
35. Rg1 {[%clk 0:00:25.6]} 35... hxg3+ {[%clk 0:01:05.1]} 36. Rxg3 {[%clk
0:00:24.9]} 36... Kf6 {[%clk 0:00:56.1]} 37. Qb3 {[%clk 0:00:24.2]} 37... Kg7
{[%clk 0:00:49.6]} 38. Qd1 {[%clk 0:00:23.4]} 38... Rf7 {[%clk 0:00:48.4]} 39.
Qb3 {[%clk 0:00:21]} 39... Rd7 {[%clk 0:00:47.5]} 40. Rc1 {[%clk 0:00:20.6]}
40... Ne7 {[%clk 0:00:40.8]} 41. Rcg1 {[%clk 0:00:19.3]} 41... Kf6 {[%clk
0:00:39.6]} 42. Qd1 {[%clk 0:00:18.6]} 42... Qe4 {[%clk 0:00:35.5]} 43. Rxf3+
{[%clk 0:00:18]} 43... Ke6 {[%clk 0:00:31.2]} 44. Rf4 {[%clk 0:00:16]} 1-0

[Event "*** SCC Grand Prix: Titled Tuesday Blitz"]
[Site "Chess.com"]
[Date "2020.08.25"]
[Round "7"]
[White "LubovMarkelova"]
[Black "MYMChessAcademy"]
[Result "0-1"]
[WhiteElo "2191"]
[BlackElo "2111"]
[TimeControl "180+1"]
[EndTime "11:20:17 PDT"]
[Termination "MYMChessAcademy won by resignation"]

1. d4 {[%clk 0:03:00.9]} 1... Nf6 {[%clk 0:02:59.5]} 2. Nf3 {[%clk 0:03:00.9]}
2... g6 {[%clk 0:02:59.1]} 3. g3 {[%clk 0:03:00.2]} 3... Bg7 {[%clk 0:02:59.1]}
4. Bg2 {[%clk 0:03:00.8]} 4... O-O {[%clk 0:02:59.7]} 5. O-O {[%clk 0:03:01.4]}
5... d6 {[%clk 0:03:00.3]} 6. Re1 {[%clk 0:03:01.9]} 6... Nc6 {[%clk 0:03:00.6]}
7. e4 {[%clk 0:03:02.5]} 7... e5 {[%clk 0:03:00.9]} 8. d5 {[%clk 0:03:02.5]}
8... Ne7 {[%clk 0:03:01.2]} 9. c4 {[%clk 0:03:03.4]} 9... Nd7 {[%clk 0:03:01.4]}
10. Nc3 {[%clk 0:03:01.8]} 10... f5 {[%clk 0:03:01.9]} 11. Ng5 {[%clk
0:02:59.1]} 11... Nb6 {[%clk 0:02:56.8]} 12. Ne6 {[%clk 0:02:54.4]} 12... Bxe6
{[%clk 0:02:55.5]} 13. dxe6 {[%clk 0:02:54.3]} 13... Nxc4 {[%clk 0:02:55.3]} 14.
exf5 {[%clk 0:02:54.5]} 14... gxf5 {[%clk 0:02:51.7]} 15. Nd5 {[%clk 0:02:53.9]}
15... Nb6 {[%clk 0:02:46.7]} 16. Nxb6 {[%clk 0:02:35]} 16... axb6 {[%clk
0:02:42.9]} 17. Bxb7 {[%clk 0:02:35.5]} 17... Ra7 {[%clk 0:02:41.3]} 18. Bg2
{[%clk 0:02:35.7]} 18... f4 {[%clk 0:02:37.9]} 19. gxf4 {[%clk 0:02:33.8]} 19...
exf4 {[%clk 0:02:37.2]} 20. Qg4 {[%clk 0:02:33.9]} 20... Ng6 {[%clk 0:02:31.2]}
21. Bd5 {[%clk 0:02:22.8]} 21... Kh8 {[%clk 0:02:29.6]} 22. Rb1 {[%clk 0:02:20]}
22... Ne5 {[%clk 0:02:28.7]} 23. Qh5 {[%clk 0:01:58.5]} 23... c6 {[%clk
0:02:16.4]} 24. Be4 {[%clk 0:01:56.9]} 24... h6 {[%clk 0:02:11.7]} 25. b4 {[%clk
0:01:53.5]} 25... d5 {[%clk 0:01:56.7]} 26. Bc2 {[%clk 0:01:43.4]} 26... Qg5+
{[%clk 0:01:41]} 27. Qxg5 {[%clk 0:01:42.5]} 27... Nf3+ {[%clk 0:01:38.9]} 28.
Kg2 {[%clk 0:01:38.9]} 28... Nxe1+ {[%clk 0:01:38.6]} 29. Kf1 {[%clk 0:01:38.1]}
29... hxg5 {[%clk 0:01:38.6]} 30. Kxe1 {[%clk 0:01:37.2]} 30... Rxa2 {[%clk
0:01:37.3]} 31. Bg6 {[%clk 0:01:33.1]} 31... Bc3+ {[%clk 0:01:35]} 32. Kf1
{[%clk 0:01:32.1]} 32... Bf6 {[%clk 0:01:32.5]} 33. Bb2 {[%clk 0:01:12.1]} 33...
Rxb2 {[%clk 0:00:57.2]} 34. Rxb2 {[%clk 0:01:09.2]} 34... Bxb2 {[%clk
0:00:57.8]} 35. e7 {[%clk 0:01:09.7]} 35... Ra8 {[%clk 0:00:58]} 36. e8=Q+
{[%clk 0:01:08.1]} 36... Rxe8 {[%clk 0:00:58.1]} 37. Bxe8 {[%clk 0:01:08.1]}
37... c5 {[%clk 0:00:56.9]} 38. bxc5 {[%clk 0:01:07.5]} 38... bxc5 {[%clk
0:00:57.5]} 39. Bc6 {[%clk 0:01:07.6]} 39... d4 {[%clk 0:00:57.4]} 40. Bb5
{[%clk 0:01:07.7]} 40... Kg7 {[%clk 0:00:54.5]} 41. Ke2 {[%clk 0:01:08.2]} 41...
Kf6 {[%clk 0:00:53.5]} 42. Kf3 {[%clk 0:01:08.7]} 42... Kf5 {[%clk 0:00:44.9]}
43. Bd3+ {[%clk 0:01:07.2]} 43... Kf6 {[%clk 0:00:34]} 44. Ke4 {[%clk
0:01:04.6]} 44... Ke6 {[%clk 0:00:32.6]} 45. Bc4+ {[%clk 0:01:03.1]} 45... Kd6
{[%clk 0:00:31.7]} 46. Kf5 {[%clk 0:01:01.4]} 46... Bc1 {[%clk 0:00:30.7]} 47.
Kxg5 {[%clk 0:01:00.9]} 47... Ke5 {[%clk 0:00:30.3]} 48. h4 {[%clk 0:00:59.2]}
48... f3+ {[%clk 0:00:29.2]} 49. Kg4 {[%clk 0:00:37.2]} 49... Ke4 {[%clk
0:00:29.5]} 50. Bb5 {[%clk 0:00:37.2]} 50... d3 {[%clk 0:00:27]} 51. Bc6+ {[%clk
0:00:36.7]} 51... Ke5 {[%clk 0:00:23.2]} 52. Bxf3 {[%clk 0:00:37.3]} 52... c4
{[%clk 0:00:23.4]} 53. Bd1 {[%clk 0:00:21.4]} 53... c3 {[%clk 0:00:22.2]} 54.
Ba4 {[%clk 0:00:20.9]} 54... c2 {[%clk 0:00:17.4]} 55. Kf3 {[%clk 0:00:21.2]}
55... Bd2 {[%clk 0:00:17]} 0-1

[Event "*** SCC Grand Prix: Titled Tuesday Blitz"]
[Site "Chess.com"]
[Date "2020.08.25"]
[Round "7"]
[White "ketster"]
[Black "korkmaz16"]
[Result "1-0"]
[WhiteElo "2442"]
[BlackElo "2300"]
[TimeControl "180+1"]
[EndTime "11:20:18 PDT"]
[Termination "ketster won by checkmate"]

1. d4 {[%clk 0:03:00.9]} 1... d5 {[%clk 0:02:58]} 2. c4 {[%clk 0:03:01]} 2... c6
{[%clk 0:02:57.1]} 3. Nf3 {[%clk 0:03:00.7]} 3... Nf6 {[%clk 0:02:56.6]} 4. g3
{[%clk 0:03:00.2]} 4... g6 {[%clk 0:02:56.1]} 5. Bg2 {[%clk 0:02:59.8]} 5... Bg7
{[%clk 0:02:56.3]} 6. b3 {[%clk 0:03:00.3]} 6... O-O {[%clk 0:02:56.1]} 7. Bb2
{[%clk 0:03:00]} 7... Bf5 {[%clk 0:02:56.1]} 8. O-O {[%clk 0:02:59.6]} 8... Ne4
{[%clk 0:02:56.1]} 9. Nbd2 {[%clk 0:02:52.9]} 9... Nd7 {[%clk 0:02:54.3]} 10.
Nh4 {[%clk 0:02:52.6]} 10... Nxd2 {[%clk 0:02:50.6]} 11. Qxd2 {[%clk 0:02:48.4]}
11... Be6 {[%clk 0:02:44.9]} 12. Rac1 {[%clk 0:02:46.8]} 12... Nf6 {[%clk
0:02:43.3]} 13. Qc2 {[%clk 0:02:41.4]} 13... dxc4 {[%clk 0:02:34]} 14. bxc4
{[%clk 0:02:40.7]} 14... Qa5 {[%clk 0:02:30.9]} 15. Bc3 {[%clk 0:02:12]} 15...
Qa6 {[%clk 0:02:28.9]} 16. Bb4 {[%clk 0:02:10]} 16... Rfd8 {[%clk 0:02:22.8]}
17. e3 {[%clk 0:02:04.6]} 17... Rd7 {[%clk 0:02:20.1]} 18. Nf3 {[%clk
0:02:02.3]} 18... Bf5 {[%clk 0:02:13.9]} 19. Qb3 {[%clk 0:01:59.8]} 19... Ne4
{[%clk 0:02:10.7]} 20. Nh4 {[%clk 0:01:54.7]} 20... c5 {[%clk 0:01:58.4]} 21.
Nxf5 {[%clk 0:01:38.4]} 21... cxb4 {[%clk 0:01:47.2]} 22. Bxe4 {[%clk 0:01:23]}
22... gxf5 {[%clk 0:01:46.2]} 23. Bxf5 {[%clk 0:01:22.4]} 23... e6 {[%clk
0:01:45.7]} 24. Be4 {[%clk 0:01:13.7]} 24... Qa5 {[%clk 0:01:16.4]} 25. c5
{[%clk 0:01:08.8]} 25... Rc8 {[%clk 0:01:12.2]} 26. Bb1 {[%clk 0:00:58.9]} 26...
b6 {[%clk 0:01:01.8]} 27. c6 {[%clk 0:00:49.8]} 27... Rdc7 {[%clk 0:00:57.7]}
28. Be4 {[%clk 0:00:49.3]} 28... Qb5 {[%clk 0:00:57.7]} 29. Qb1 {[%clk
0:00:37.7]} 29... h5 {[%clk 0:00:56.4]} 30. Rfd1 {[%clk 0:00:35.2]} 30... a5
{[%clk 0:00:53]} 31. d5 {[%clk 0:00:32.2]} 31... exd5 {[%clk 0:00:52.4]} 32.
Bxd5 {[%clk 0:00:27.7]} 32... Kf8 {[%clk 0:00:45.1]} 33. Bf3 {[%clk 0:00:18.8]}
33... h4 {[%clk 0:00:42.1]} 34. Qe4 {[%clk 0:00:18.4]} 34... hxg3 {[%clk
0:00:38.3]} 35. hxg3 {[%clk 0:00:18.3]} 35... Qe5 {[%clk 0:00:38.6]} 36. Qg4
{[%clk 0:00:14.8]} 36... Qf6 {[%clk 0:00:34.7]} 37. Rd7 {[%clk 0:00:14.3]} 37...
Qh6 {[%clk 0:00:32]} 38. Rcd1 {[%clk 0:00:13.7]} 38... Bf6 {[%clk 0:00:30.9]}
39. Rxc7 {[%clk 0:00:11.4]} 39... Rxc7 {[%clk 0:00:31.2]} 40. Rd6 {[%clk
0:00:11.6]} 40... Qg7 {[%clk 0:00:30.2]} 41. Qf4 {[%clk 0:00:10.8]} 41... Ke7
{[%clk 0:00:28.9]} 42. Rd5 {[%clk 0:00:08.4]} 42... Rxc6 {[%clk 0:00:25.4]} 43.
Qe4+ {[%clk 0:00:05.4]} 43... Re6 {[%clk 0:00:25.5]} 44. Qc2 {[%clk 0:00:05]}
44... Be5 {[%clk 0:00:24.8]} 45. Qc8 {[%clk 0:00:03.9]} 45... Kf6 {[%clk
0:00:25.3]} 46. Qd8+ {[%clk 0:00:04]} 46... Kg6 {[%clk 0:00:25.2]} 47. Be4+
{[%clk 0:00:04.3]} 47... Kh6 {[%clk 0:00:22.9]} 48. Qh4# {[%clk 0:00:04.6]} 1-0